bitfinex/quotes_BTCUSD_20250910
["timestamp","ask_amount","ask_price","bid_price","bid_amount"]
[1757525073381,0.80804739,113760.0,113750.0,0.0025]
[1757525073596,1.19751003,113760.0,113750.0,0.0025]
[1757525073810,1.26654135,113760.0,113750.0,1e-08]
[1757525074045,1.06729143,113760.0,113750.0,0.00500001]
[1757525074209,1.19652003,113760.0,113750.0,0.00500001]
[1757525074839,1.19751003,113760.0,113750.0,1e-08]
[1757525075053,0.80804739,113760.0,113750.0,1e-08]
[1757525075277,1.19751003,113760.0,113750.0,1e-08]
[1757525075481,1.19751105,113760.0,113750.0,1e-08]
[1757525075710,1.19652105,113760.0,113750.0,0.00500001]
[1757525075913,0.63277183,113760.0,113750.0,0.00500001]
[1757525076129,0.78193183,113760.0,113750.0,0.02755001]
[1757525076325,0.97666315,113760.0,113750.0,0.02755001]
[1757525076555,0.78193183,113760.0,113750.0,0.02755001]
[1757525076980,0.29277183,113760.0,113750.0,0.02755001]
[1757525077195,0.19235469,113760.0,113750.0,0.02755001]
[1757525077387,0.32506872,113760.0,113750.0,0.02974781]
[1757525077747,0.32506872,113760.0,113750.0,0.20337418]
[1757525078176,0.32506872,113760.0,113750.0,0.02755001]
[1757525078597,0.32506872,113760.0,113750.0,0.02974781]
[1757525084498,0.32506872,113760.0,113750.0,0.02755001]
[1757525085118,0.51980004,113760.0,113750.0,0.02755001]
[1757525085635,0.80205488,113760.0,113750.0,0.00500001]
[1757525087632,0.60732356,113760.0,113750.0,0.00500001]
[1757525088163,0.60732356,113760.0,113750.0,0.02755001]
[1757525088724,0.60724356,113760.0,113750.0,0.02755001]
[1757525092736,0.82809146,113760.0,113750.0,1e-08]
[1757525092944,0.85448134,113760.0,113750.0,1e-08]
[1757525094085,1.19448134,113760.0,113750.0,1e-08]
[1757525094320,1.2109162,113760.0,113750.0,1e-08]
[1757525095646,1.01519488,113760.0,113750.0,0.00504001]
[1757525095989,1.0608462,113760.0,113750.0,0.00504001]
[1757525096184,0.82046356,113760.0,113750.0,0.00504001]
[1757525096499,1.2099262,113760.0,113750.0,0.00504001]
[1757525099405,1.2109162,113760.0,113750.0,0.00504001]
[1757525100968,1.21092048,113760.0,113750.0,0.00504001]
[1757525102317,1.08117804,113760.0,113750.0,0.00504001]
[1757525102529,1.08117804,113760.0,113750.0,1e-08]
[1757525102928,1.08179804,113760.0,113750.0,1e-08]
[1757525103178,1.11140345,113760.0,113750.0,1e-08]
[1757525103579,1.24126355,113760.0,113750.0,1e-08]
[1757525104788,0.54095075,113750.0,113740.0,0.0004]
[1757525104996,1.10481447,113750.0,113740.0,0.00044695]
[1757525105198,0.97594437,113750.0,113740.0,0.00044695]
[1757525105390,0.84608427,113750.0,113740.0,0.00044695]
[1757525105634,0.97946342,113750.0,113740.0,0.00044695]
[1757525105830,0.97946342,113750.0,113740.0,0.00343695]
[1757525106233,0.97946342,113750.0,113740.0,0.00044695]
[1757525106622,0.98847221,113750.0,113740.0,0.00044695]
[1757525107340,1.11895231,113750.0,113740.0,0.00044695]
[1757525107562,1.14239231,113750.0,113740.0,0.00044695]
[1757525108349,1.14177231,113750.0,113740.0,0.00044695]
[1757525108700,1.01191221,113750.0,113740.0,0.00044695]
[1757525109543,1.02835055,113750.0,113740.0,0.00044695]
[1757525110446,1.02835093,113750.0,113740.0,0.00044695]
[1757525111271,1.00491093,113750.0,113740.0,0.00044695]
[1757525112088,1.00553093,113750.0,113740.0,0.00044695]
[1757525112672,1.00491093,113750.0,113740.0,0.00044695]
[1757525113460,0.85587093,113750.0,113740.0,0.00044695]
[1757525113667,1.00491093,113750.0,113740.0,0.00044695]
[1757525115761,1.0705747,113750.0,113740.0,0.00044695]
[1757525117011,0.97032272,113750.0,113740.0,0.00044695]
[1757525117233,1.10080282,113750.0,113740.0,0.00044695]
[1757525117796,1.23066292,113750.0,113740.0,0.00044695]
[1757525118781,1.23004292,113750.0,113740.0,0.00044695]
[1757525118974,1.23462225,113750.0,113740.0,0.00044695]
[1757525120279,1.23524225,113750.0,113740.0,0.00044695]
[1757525121281,0.17585509,113730.0,113720.0,0.00339]
[1757525121498,0.54443661,113730.0,113720.0,0.00339]
[1757525121711,0.17587055,113720.0,113710.0,0.00760665]
[1757525121929,0.17588602,113710.0,113700.0,0.05594493]
[1757525122359,0.17588602,113710.0,113700.0,0.01086191]
[1757525122797,0.32488602,113710.0,113700.0,0.00215]
[1757525123233,0.32498602,113710.0,113700.0,0.00561989]
[1757525123790,0.32498602,113710.0,113700.0,0.00860989]
[1757525124209,0.32498602,113710.0,113700.0,0.03934989]
[1757525126400,0.17598602,113710.0,113700.0,0.03934989]
[1757525126638,0.32718392,113710.0,113700.0,0.03934989]
[1757525126896,0.32498602,113710.0,113700.0,0.03934989]
[1757525129588,0.41250954,113710.0,113700.0,0.03934989]
[1757525130082,0.41250954,113710.0,113700.0,0.01560989]
[1757525130998,0.41250954,113710.0,113700.0,0.00860989]
[1757525131223,0.41250954,113710.0,113700.0,0.00560989]
[1757525131469,0.41250954,113710.0,113700.0,0.01160989]
[1757525131692,0.41250954,113710.0,113700.0,0.01460989]
[1757525132144,0.26350954,113710.0,113700.0,0.01460989]
[1757525132353,0.41250954,113710.0,113700.0,0.01460989]
[1757525134483,0.54236964,113710.0,113700.0,0.01460989]
[1757525134924,0.56876839,113710.0,113700.0,0.01460989]
[1757525135262,0.41976839,113710.0,113700.0,0.01460989]
[1757525135474,0.56876839,113710.0,113700.0,0.01460989]
[1757525138077,0.28990829,113710.0,113700.0,0.01460989]
[1757525138301,0.56872839,113710.0,113700.0,0.01460989]
[1757525138737,0.56872839,113710.0,113700.0,0.00860989]
[1757525138952,0.56872839,113710.0,113700.0,0.01360989]
[1757525139487,0.28990829,113710.0,113700.0,0.01360989]
[1757525139750,0.43886829,113710.0,113700.0,0.01060989]
[1757525139941,0.43886829,113710.0,113700.0,0.01260989]
[1757525140782,0.43886829,113710.0,113700.0,0.03634989]
[1757525144076,0.43886829,113710.0,113700.0,0.03634989]
[1757525144705,0.28990829,113710.0,113700.0,0.03634989]
[1757525144915,0.43886829,113710.0,113700.0,0.03634989]
[1757525147910,0.28990829,113710.0,113700.0,0.03634989]
[1757525148112,0.43886829,113710.0,113700.0,0.03634989]
[1757525150019,0.41246954,113710.0,113700.0,0.03634989]
[1757525151137,0.41242954,113710.0,113700.0,0.03634989]
[1757525152217,0.26350954,113710.0,113700.0,0.03634989]
[1757525152451,0.41242954,113710.0,113700.0,0.03634989]
[1757525152868,0.54228964,113710.0,113700.0,0.03634989]
[1757525153302,0.54428964,113710.0,113700.0,0.00756989]
[1757525153774,0.42176751,113710.0,113700.0,0.01252989]
[1757525153977,0.56868751,113710.0,113700.0,0.01252989]
[1757525154195,0.57069751,113710.0,113700.0,0.01252989]
[1757525154419,0.57069751,113710.0,113700.0,0.01262989]
[1757525154628,0.57069751,113710.0,113700.0,0.00675764]
[1757525155527,0.57069751,113710.0,113700.0,0.00169764]
[1757525155949,0.57069751,113710.0,113700.0,0.00369764]
[1757525156129,0.57069751,113710.0,113700.0,0.00169764]
[1757525156347,0.57384751,113710.0,113700.0,0.00169764]
[1757525156588,0.57069751,113710.0,113700.0,0.00169764]
[1757525156808,0.57069751,113710.0,113700.0,0.00675764]
[1757525157291,0.46596399,113710.0,113700.0,0.00169764]
[1757525157515,0.59582409,113710.0,113700.0,0.00675764]
[1757525157967,0.46596399,113710.0,113700.0,0.00169764]
[1757525158162,0.59582409,113710.0,113700.0,0.00675764]
[1757525158583,0.59762409,113710.0,113700.0,0.00506]
[1757525158802,0.59762409,113710.0,113700.0,0.00606]
[1757525159034,0.59561409,113710.0,113700.0,0.00606]
[1757525159457,0.59561409,113710.0,113700.0,0.00706]
[1757525159876,0.31503399,113710.0,113700.0,0.00706]
[1757525160086,0.44054741,113710.0,113700.0,0.02978]
[1757525161556,0.44054741,113710.0,113700.0,0.00706]
[1757525162334,0.28990741,113710.0,113700.0,0.00706]
[1757525162555,0.44050741,113710.0,113700.0,0.00706]
[1757525162984,0.57036751,113710.0,113700.0,0.00706]
[1757525163608,0.57552751,113710.0,113700.0,0.002]
[1757525163820,0.6147153,113710.0,113700.0,0.002]
[1757525164687,0.4817052,113710.0,113700.0,0.002]
[1757525164896,0.65395696,113710.0,113700.0,0.002]
[1757525166272,0.4589952,113710.0,113700.0,0.002]
[1757525166541,0.64062917,113710.0,113700.0,0.002]
[1757525167218,0.83559093,113710.0,113700.0,0.002]
[1757525167436,0.64062917,113710.0,113700.0,0.002]
[1757525168719,0.98062917,113710.0,113700.0,0.002]
[1757525169884,0.99709878,113710.0,113700.0,0.002]
[1757525171450,0.99394878,113710.0,113700.0,0.002]
[1757525171862,1.19206054,113710.0,113700.0,0.002]
[1757525172329,1.17559093,113710.0,113700.0,0.002]
[1757525172584,0.97747917,113710.0,113700.0,0.002]
[1757525174455,0.82687917,113710.0,113700.0,0.002]
[1757525174657,0.97703917,113710.0,113700.0,0.002]
[1757525174889,0.78203741,113710.0,113700.0,0.002]
[1757525175150,0.97699917,113710.0,113700.0,0.002]
[1757525176924,0.98014917,113710.0,113700.0,0.002]
[1757525177569,0.97699917,113710.0,113700.0,0.002]
[1757525178686,0.97691917,113710.0,113700.0,0.002]
[1757525179106,0.63191741,113710.0,113700.0,0.002]
[1757525179326,0.99334713,113710.0,113700.0,0.004]
[1757525179522,0.99334713,113710.0,113700.0,0.002]
[1757525182158,0.79838537,113710.0,113700.0,0.002]
[1757525182382,0.99334713,113710.0,113700.0,0.002]
[1757525186272,0.99952614,113710.0,113700.0,0.002]
[1757525186712,0.99952614,113710.0,113700.0,0.00403]
[1757525186924,0.99952614,113710.0,113700.0,0.00719]
[1757525187266,1.01850985,113710.0,113700.0,0.00719]
[1757525187473,1.01850985,113710.0,113700.0,0.00403]
[1757525187712,1.01850985,113710.0,113700.0,0.00719]
[1757525187918,1.01850985,113710.0,113700.0,0.00403]
[1757525188230,0.82354809,113710.0,113700.0,0.002]
[1757525188365,1.01850985,113710.0,113700.0,0.002]
[1757525192064,0.33153809,113710.0,113700.0,0.00719]
[1757525192281,0.43946741,113710.0,113700.0,0.03098]
[1757525192490,0.46459399,113710.0,113700.0,0.03098]
[1757525194619,0.28990741,113710.0,113700.0,0.03098]
[1757525194857,0.43982741,113710.0,113700.0,0.03098]
[1757525195106,0.0001,113710.0,113700.0,0.22976994]
[1757525195323,0.0001,113710.0,113700.0,0.22757118]
[1757525195517,0.0001,113710.0,113700.0,0.20688149]
[1757525202215,0.17598602,113710.0,113700.0,0.03098]
[1757525202425,0.17818392,113710.0,113700.0,0.00719]
[1757525202861,0.26570744,113710.0,113700.0,0.00719]
[1757525203071,0.48563788,113710.0,113700.0,0.00719]
[1757525203753,0.48563788,113710.0,113700.0,0.00403]
[1757525204721,0.29067612,113710.0,113700.0,0.00403]
[1757525204956,0.48563788,113710.0,113700.0,0.002]
[1757525205190,0.85330788,113710.0,113700.0,0.002]
[1757525205415,0.87970825,113710.0,113700.0,0.002]
[1757525207758,0.02512658,113690.0,113680.0,0.0004]
[1757525207990,1.23808848,113690.0,113680.0,0.00044695]
[1757525208217,1.30777804,113690.0,113680.0,1e-08]
[1757525208430,0.91795452,113690.0,113680.0,1e-08]
[1757525208666,1.11643739,113690.0,113680.0,1e-08]
[1757525208866,0.91854563,113690.0,113680.0,1e-08]
[1757525209147,1.11350739,113690.0,113680.0,0.00200001]
[1757525209292,1.09133682,113690.0,113680.0,0.00200001]
[1757525209500,1.09133682,113690.0,113680.0,0.00100001]
[1757525209698,0.95961837,113690.0,113680.0,0.00100001]
[1757525209908,1.11336324,113690.0,113680.0,0.00303001]
[1757525210112,1.11336324,113690.0,113680.0,0.00203001]
[1757525210695,0.96288324,113690.0,113680.0,0.00203001]
[1757525210909,1.11336324,113690.0,113680.0,0.00203001]
[1757525211099,1.11336324,113690.0,113680.0,1e-08]
[1757525212611,0.91840148,113690.0,113680.0,1e-08]
[1757525212824,1.11336324,113690.0,113680.0,1e-08]
[1757525214087,1.11656324,113690.0,113680.0,1e-08]
[1757525215683,1.311525,113690.0,113680.0,1e-08]
[1757525217197,1.161045,113690.0,113680.0,1e-08]
[1757525217410,1.308405,113690.0,113680.0,1e-08]
[1757525217850,1.311605,113690.0,113680.0,1e-08]
[1757525218086,1.35191611,113690.0,113680.0,1e-08]
[1757525219631,1.20135611,113690.0,113680.0,1e-08]
[1757525219904,1.32483611,113690.0,113680.0,1e-08]
[1757525220120,0.93491259,113690.0,113680.0,1e-08]
[1757525220347,1.32803611,113690.0,113680.0,1e-08]
[1757525221665,1.35195611,113690.0,113680.0,1e-08]
[1757525224336,1.54691787,113690.0,113680.0,1e-08]
[1757525224562,1.35195611,113690.0,113680.0,1e-08]
[1757525225023,1.54691787,113690.0,113680.0,1e-08]
[1757525225268,0.76081772,113680.0,113670.0,1e-08]
[1757525225492,0.95449541,113680.0,113670.0,1e-08]
[1757525225679,0.39869013,113680.0,113670.0,1e-08]
[1757525225936,0.98367541,113680.0,113670.0,1e-08]
[1757525226183,0.45959365,113680.0,113670.0,1e-08]
[1757525226411,0.85271717,113680.0,113670.0,1e-08]
[1757525226632,0.74681739,113680.0,113670.0,1e-08]
[1757525227792,0.48671365,113680.0,113670.0,1e-08]
[1757525228240,0.33415365,113680.0,113670.0,1e-08]
[1757525228458,0.74693739,113680.0,113670.0,1e-08]
[1757525229346,0.75308147,113680.0,113670.0,1e-08]
[1757525230279,0.60040147,113680.0,113670.0,1e-08]
[1757525230501,0.60040147,113680.0,113670.0,0.00530001]
[1757525230502,0.48473954,113680.0,113670.0,0.00530001]
[1757525230735,0.71977739,113680.0,113670.0,0.00530001]
[1757525230967,0.30507365,113680.0,113670.0,0.00530001]
[1757525231197,0.58776552,113680.0,113670.0,0.00530001]
[1757525231469,0.43512552,113680.0,113670.0,0.00530001]
[1757525231689,0.43254707,113680.0,113670.0,0.02895001]
[1757525231819,0.56259894,113680.0,113670.0,0.02895001]
[1757525232250,0.56259894,113680.0,113670.0,0.00530001]
[1757525232691,0.43254707,113680.0,113670.0,0.00530001]
[1757525232894,0.56259894,113680.0,113670.0,0.00530001]
[1757525233114,0.56259894,113680.0,113670.0,0.02895001]
[1757525233322,0.43254707,113680.0,113670.0,0.02895001]
[1757525233531,0.56259894,113680.0,113670.0,0.00530001]
[1757525233737,0.43254707,113680.0,113670.0,0.00530001]
[1757525233946,0.56259894,113680.0,113670.0,0.00530001]
[1757525235642,0.71777739,113680.0,113670.0,0.00530001]
[1757525235872,0.71777739,113680.0,113670.0,1e-08]
[1757525235873,0.72293739,113680.0,113670.0,1e-08]
[1757525236076,0.71973739,113680.0,113670.0,1e-08]
[1757525236361,0.72590255,113680.0,113670.0,1e-08]
[1757525237269,0.74485754,113680.0,113670.0,1e-08]
[1757525238199,0.74805754,113680.0,113670.0,1e-08]
[1757525238466,0.74289754,113680.0,113670.0,1e-08]
[1757525238672,0.59225754,113680.0,113670.0,0.00530001]
[1757525238975,0.74485754,113680.0,113670.0,0.00530001]
[1757525239198,0.74481754,113680.0,113670.0,0.00530001]
[1757525239411,0.74285754,113680.0,113670.0,0.00530001]
[1757525239631,0.61280567,113680.0,113670.0,0.00530001]
[1757525241027,0.8279138,113680.0,113670.0,1e-08]
[1757525241241,0.8247138,113680.0,113670.0,1e-08]
[1757525241444,1.08481754,113680.0,113670.0,1e-08]
[1757525241682,1.08481754,113680.0,113670.0,0.00530001]
[1757525241888,0.8227538,113680.0,113670.0,0.00530001]
[1757525242119,0.95280567,113680.0,113670.0,0.00530001]
[1757525242303,1.08285754,113680.0,113670.0,0.00530001]
[1757525243188,0.6721538,113680.0,113670.0,0.00214001]
[1757525243388,0.95304567,113680.0,113670.0,0.00530001]
[1757525243616,0.95516567,113680.0,113670.0,0.00530001]
[1757525243946,0.8251138,113680.0,113670.0,0.00530001]
[1757525244376,0.95516567,113680.0,113670.0,0.00530001]
[1757525246102,0.8251138,113680.0,113670.0,0.00530001]
[1757525246329,1.08517754,113680.0,113670.0,0.00530001]
[1757525246800,1.08518367,113680.0,113670.0,0.00530001]
[1757525247662,0.82507993,113680.0,113670.0,0.00530001]
[1757525247903,1.08518367,113680.0,113670.0,0.00530001]
[1757525248322,1.08732367,113680.0,113670.0,0.00530001]
[1757525248777,1.08518367,113680.0,113670.0,0.00530001]
[1757525249003,0.82507993,113680.0,113670.0,0.00530001]
[1757525249221,0.82507993,113680.0,113670.0,0.00214001]
[1757525249435,0.82507993,113680.0,113670.0,0.00527001]
[1757525249436,1.08732367,113680.0,113670.0,0.00527001]
[1757525250165,1.08518367,113680.0,113670.0,0.00527001]
[1757525250838,1.08732367,113680.0,113670.0,0.00527001]
[1757525250968,0.82721993,113680.0,113670.0,0.00527001]
[1757525251167,1.08732367,113680.0,113670.0,1e-08]
[1757525251371,1.09037367,113680.0,113670.0,1e-08]
[1757525251577,1.11426367,113680.0,113670.0,1e-08]
[1757525253737,0.85415993,113680.0,113670.0,1e-08]
[1757525253955,1.11426367,113680.0,113670.0,1e-08]
[1757525254215,0.85415993,113680.0,113670.0,1e-08]
[1757525254404,1.11426367,113680.0,113670.0,1e-08]
[1757525254767,1.08732367,113680.0,113670.0,1e-08]
[1757525255208,0.82721993,113680.0,113670.0,1e-08]
[1757525255421,1.08732367,113680.0,113670.0,1e-08]
[1757525256067,1.08566367,113680.0,113670.0,0.00510001]
[1757525256524,1.08550367,113680.0,113670.0,0.00510001]
[1757525256766,0.82539993,113680.0,113670.0,0.00510001]
[1757525256986,1.08550367,113680.0,113670.0,0.00510001]
[1757525257639,0.82749993,113680.0,113670.0,0.00510001]
[1757525257895,1.08760367,113680.0,113670.0,0.00510001]
[1757525259222,1.08534367,113680.0,113670.0,0.00510001]
[1757525259438,1.08530367,113680.0,113670.0,0.00510001]
[1757525259877,0.67019993,113680.0,113670.0,0.00510001]
[1757525260115,1.08530367,113680.0,113670.0,0.00510001]
[1757525260339,0.82519993,113680.0,113670.0,0.00510001]
[1757525260575,1.08530367,113680.0,113670.0,0.00510001]
[1757525261008,0.82519993,113680.0,113670.0,0.00510001]
[1757525261232,1.08744367,113680.0,113670.0,1e-08]
[1757525261449,1.08744367,113680.0,113670.0,0.00197001]
[1757525261450,1.08744989,113680.0,113670.0,0.00197001]
[1757525261681,0.82734615,113680.0,113670.0,0.00197001]
[1757525261934,1.08530989,113680.0,113670.0,0.00510001]
[1757525262155,0.82520615,113680.0,113670.0,0.00510001]
[1757525262347,1.08127238,113680.0,113670.0,0.00510001]
[1757525263633,0.82734711,113680.0,113670.0,0.00510001]
[1757525263850,1.08745085,113680.0,113670.0,0.00510001]
[1757525264065,0.82734711,113680.0,113670.0,0.00510001]
[1757525264280,1.08531085,113680.0,113670.0,0.00510001]
[1757525264485,1.08745085,113680.0,113670.0,0.00510001]
[1757525264917,1.08531085,113680.0,113670.0,0.00510001]
[1757525266260,1.08745085,113680.0,113670.0,0.00510001]
[1757525266690,0.82520711,113680.0,113670.0,0.00510001]
[1757525266941,1.09050085,113680.0,113670.0,1e-08]
[1757525268207,0.83039711,113680.0,113670.0,1e-08]
[1757525268619,1.09050085,113680.0,113670.0,1e-08]
[1757525268836,1.11439085,113680.0,113670.0,1e-08]
[1757525269771,1.09050085,113680.0,113670.0,1e-08]
[1757525272120,1.24444272,113680.0,113670.0,1e-08]
[1757525272337,0.46119371,113660.0,113650.0,0.00371]
[1757525272552,0.46119371,113660.0,113650.0,0.00375696]
[1757525272553,0.71970834,113660.0,113650.0,0.00375696]
[1757525272753,0.71970834,113660.0,113650.0,0.00572696]
[1757525273224,0.56520834,113660.0,113650.0,0.00572696]
[1757525273677,0.4618446,113660.0,113650.0,0.00572696]
[1757525273892,0.71980834,113660.0,113650.0,0.00772696]
[1757525274458,0.72183834,113660.0,113650.0,0.00772696]
[1757525274887,0.72183834,113660.0,113650.0,0.00972696]
[1757525275255,0.72183834,113660.0,113650.0,0.00462696]
[1757525275655,0.78939834,113660.0,113650.0,0.00462696]
[1757525276080,0.79807456,113660.0,113650.0,0.00462696]
[1757525276290,0.80113847,113660.0,113650.0,0.00462696]
[1757525276485,1.14113847,113660.0,113650.0,1e-08]
[1757525276733,1.17057152,113660.0,113650.0,1e-08]
[1757525276934,1.18953561,113660.0,113650.0,1e-08]
[1757525277401,1.1616553,113660.0,113650.0,1e-08]
[1757525277581,1.1616153,113660.0,113650.0,1e-08]
[1757525277899,1.1616153,113660.0,113640.0,0.00324]
[1757525277900,0.20110546,113650.0,113640.0,0.00324]
[1757525278115,0.57300085,113650.0,113640.0,0.00324]
[1757525278326,0.57513085,113650.0,113640.0,0.00538]
[1757525278542,0.57310085,113650.0,113640.0,0.00538]
[1757525278757,0.57513085,113650.0,113640.0,0.00538]
[1757525278970,0.17599436,113640.0,113630.0,0.00943462]
[1757525279206,0.33327226,113640.0,113630.0,0.00951734]
[1757525279430,0.5933081,113640.0,113630.0,0.00262272]
[1757525279653,0.33121436,113640.0,113630.0,0.00586272]
[1757525279906,0.46329623,113640.0,113630.0,0.00048272]
[1757525280140,0.46329623,113640.0,113630.0,0.00262272]
[1757525280379,0.46329623,113640.0,113630.0,0.00586272]
[1757525280380,0.5933481,113640.0,113630.0,0.00586272]
[1757525280622,0.76443788,113640.0,113630.0,0.00048272]
[1757525280846,1.02155162,113640.0,113630.0,0.00048272]
[1757525281073,0.75941788,113640.0,113630.0,0.00586272]
[1757525281506,0.76144788,113640.0,113630.0,0.00586272]
[1757525281724,0.88946975,113640.0,113630.0,0.00586272]
[1757525282155,0.89149975,113640.0,113630.0,0.00586272]
[1757525282380,0.75941788,113640.0,113630.0,0.00586272]
[1757525282620,1.20298007,113640.0,113630.0,1e-08]
[1757525282843,1.2445017,113640.0,113630.0,1e-08]
[1757525283072,1.2682517,113640.0,113630.0,1e-08]
[1757525283527,1.2682517,113640.0,113630.0,0.00100001]
[1757525284044,1.2682517,113640.0,113630.0,1e-08]
[1757525284266,1.2692517,113640.0,113630.0,1e-08]
[1757525284626,1.3360084,113640.0,113630.0,1e-08]
[1757525284839,1.3380084,113640.0,113630.0,1e-08]
[1757525285074,0.94785279,113640.0,113630.0,1e-08]
[1757525285274,1.3380084,113640.0,113630.0,1e-08]
[1757525285695,1.3370084,113640.0,113630.0,1e-08]
[1757525286133,0.02512658,113620.0,113610.0,1e-08]
[1757525286374,0.17605633,113600.0,113590.0,0.0004]
[1757525286590,0.42365775,113600.0,113590.0,0.00410911]
[1757525286797,0.81423071,113600.0,113590.0,0.00300911]
[1757525286999,0.81423071,113600.0,113590.0,0.00624911]
[1757525287206,1.15423071,113600.0,113590.0,0.00300911]
[1757525287449,1.15433071,113600.0,113590.0,0.00624911]
[1757525287678,1.01375314,113600.0,113590.0,0.00624911]
[1757525287904,0.77882228,113600.0,113590.0,0.00624911]
[1757525288113,1.16956314,113600.0,113590.0,0.00724911]
[1757525288316,0.32617218,113600.0,113590.0,0.0328]
[1757525288533,0.44085228,113600.0,113590.0,0.00186911]
[1757525288764,0.83159314,113600.0,113590.0,0.00186911]
[1757525289005,1.36696357,113600.0,113590.0,0.00286911]
[1757525289210,1.17159314,113600.0,113590.0,0.00286911]
[1757525289633,1.17159314,113600.0,113590.0,0.00500911]
[1757525290227,0.78085228,113600.0,113590.0,0.00824911]
[1757525290440,1.18794609,113600.0,113590.0,0.00824911]
[1757525290651,1.03010609,113600.0,113590.0,0.00824911]
[1757525290796,1.02807609,113600.0,113590.0,0.00824911]
[1757525290994,0.79509523,113600.0,113590.0,0.03159911]
[1757525291395,0.99046566,113600.0,113590.0,0.03159911]
[1757525291600,1.18583609,113600.0,113590.0,0.03159911]
[1757525291840,0.79509523,113600.0,113590.0,0.03159911]
[1757525292054,1.18583609,113600.0,113590.0,0.03159911]
[1757525292456,0.79509523,113600.0,113590.0,0.03159911]
[1757525292663,1.18786609,113600.0,113590.0,0.00286911]
[1757525293136,0.79712523,113600.0,113590.0,0.00286911]
[1757525293353,1.18786609,113600.0,113590.0,0.00286911]
[1757525293569,1.18785546,113600.0,113590.0,0.00824911]
[1757525293785,0.7971146,113600.0,113590.0,0.00824911]
[1757525293999,1.18785546,113600.0,113590.0,0.00824911]
[1757525294720,1.18727003,113600.0,113590.0,0.00824911]
[1757525295211,0.61161259,113600.0,113590.0,0.03159911]
[1757525295402,0.96462302,113600.0,113590.0,0.0338]
[1757525295622,0.61161259,113600.0,113590.0,0.0338]
[1757525295847,0.76925259,113600.0,113590.0,0.0338]
[1757525296062,0.96462302,113600.0,113590.0,0.0338]
[1757525296520,0.76925259,113600.0,113590.0,0.0338]
[1757525296750,0.96462302,113600.0,113590.0,0.0338]
[1757525296971,1.18715003,113600.0,113590.0,0.00824911]
[1757525297190,1.18715003,113600.0,113590.0,0.00500911]
[1757525297667,1.18512003,113600.0,113590.0,0.00824911]
[1757525298113,1.18715003,113600.0,113590.0,0.00824911]
[1757525298332,0.79640917,113600.0,113590.0,0.00824911]
[1757525298545,1.18512003,113600.0,113590.0,0.00824911]
[1757525298775,0.79640917,113600.0,113590.0,0.00824911]
[1757525299048,1.18715003,113600.0,113590.0,0.00824911]
[1757525299481,1.18715003,113600.0,113590.0,0.00500911]
[1757525299689,0.79640917,113600.0,113590.0,0.00824911]
[1757525299899,1.18715003,113600.0,113590.0,0.00824911]
[1757525300348,0.79640917,113600.0,113590.0,0.00824911]
[1757525300556,1.18715003,113600.0,113590.0,0.00824911]
[1757525300795,0.79401917,113600.0,113590.0,0.00824911]
[1757525301012,0.63673917,113600.0,113590.0,0.00824911]
[1757525301228,0.79397917,113600.0,113590.0,0.00824911]
[1757525301453,0.9893496,113600.0,113590.0,0.03159911]
[1757525302394,0.79600917,113600.0,113590.0,0.00286911]
[1757525302842,1.18675003,113600.0,113590.0,0.00286911]
[1757525303096,0.79600917,113600.0,113590.0,0.00286911]
[1757525303322,1.19288707,113600.0,113590.0,0.00286911]
[1757525303975,0.80214621,113600.0,113590.0,0.00492911]
[1757525304219,0.80214621,113600.0,113590.0,0.00592911]
[1757525304422,1.22048707,113600.0,113590.0,0.00286911]
[1757525304651,1.23934605,113600.0,113590.0,0.00286911]
[1757525305112,1.21481605,113600.0,113590.0,0.00286911]
[1757525305358,1.21481605,113600.0,113590.0,0.00186911]
[1757525305615,1.44361238,113600.0,113590.0,0.00086911]
[1757525305832,1.44361931,113600.0,113590.0,0.00086911]
[1757525306050,1.4672017,113600.0,113590.0,0.00086911]
[1757525306758,0.88109041,113600.0,113590.0,0.00086911]
[1757525307013,1.53320301,113600.0,113590.0,0.00086911]
[1757525307238,1.33871258,113600.0,113590.0,0.00086911]
[1757525307489,1.31111258,113600.0,113590.0,0.00086911]
[1757525307749,1.07909537,113600.0,113590.0,0.00086911]
[1757525307979,1.23621537,113600.0,113590.0,0.00086911]
[1757525308215,1.23641537,113600.0,113590.0,0.00292911]
[1757525308635,1.23737537,113600.0,113590.0,0.00292911]
[1757525308844,1.21489601,113600.0,113590.0,0.00292911]
[1757525309087,1.23743934,113600.0,113590.0,0.00292911]
[1757525309319,1.26896345,113600.0,113590.0,0.00292911]
[1757525309538,1.11168345,113600.0,113590.0,0.00292911]
[1757525309751,1.26896345,113600.0,113590.0,0.00086911]
[1757525310198,0.88129259,113600.0,113590.0,0.00086911]
[1757525310420,1.49193388,113600.0,113590.0,0.00086911]
[1757525311720,0.90582259,113600.0,113590.0,0.00086911]
[1757525311971,1.49193388,113600.0,113590.0,0.00086911]
[1757525312187,1.56197523,113600.0,113590.0,0.00086911]
[1757525312403,0.97586394,113600.0,113590.0,0.00086911]
[1757525312619,1.56197523,113600.0,113590.0,0.00086911]
[1757525312841,1.60937054,113600.0,113590.0,0.00086911]
[1757525313282,1.57784643,113600.0,113590.0,0.00086911]
[1757525315004,0.93193927,113590.0,113580.0,0.13845556]
[1757525315212,1.34371928,113590.0,113580.0,0.13845556]
[1757525315438,1.34581928,113590.0,113580.0,0.13845556]
[1757525316170,1.18980189,113590.0,113580.0,0.13845556]
[1757525316398,1.42050888,113590.0,113580.0,0.13845556]
[1757525316659,1.4251047,113590.0,113580.0,0.13845556]
[1757525316871,1.2682247,113590.0,113580.0,0.13845556]
[1757525317149,0.20121391,113580.0,113560.0,1e-08]
[1757525317365,0.86213347,113570.0,113560.0,1e-08]
[1757525317585,1.13429583,113570.0,113560.0,1e-08]
[1757525317804,1.40213932,113570.0,113560.0,1e-08]
[1757525318049,0.54124493,113560.0,113550.0,1e-08]
[1757525318279,1.4136749,113560.0,113550.0,1e-08]
[1757525318545,1.4433749,113560.0,113550.0,1e-08]
[1757525318981,0.84454639,113560.0,113550.0,1e-08]
[1757525319195,1.38417856,113560.0,113550.0,1e-08]
[1757525319421,1.16399713,113560.0,113550.0,0.00206001]
[1757525319640,0.75050947,113560.0,113550.0,0.00512001]
[1757525319865,0.9528999,113560.0,113550.0,1e-08]
[1757525320079,1.51587033,113560.0,113550.0,1e-08]
[1757525320297,1.52405841,113560.0,113550.0,1e-08]
[1757525320775,1.54766919,113560.0,113550.0,1e-08]
[1757525321239,1.19557876,113560.0,113550.0,1e-08]
[1757525321470,1.54758919,113560.0,113550.0,1e-08]
[1757525322143,1.52397841,113560.0,113550.0,1e-08]
[1757525322380,0.93786712,113560.0,113550.0,1e-08]
[1757525322597,1.26701908,113560.0,113550.0,1e-08]
[1757525322824,1.3331757,113560.0,113550.0,1e-08]
[1757525323078,0.87099452,113560.0,113550.0,1e-08]